fUST/lending_fUST_20250512
["ID","MTS","AMOUNT","RATE_DAILY","PERIOD"]
[360777540,1747011033158,-997.71092301,0.00019329,3]
[360777541,1747011033169,-100000.0,0.00019329,2]
[360777542,1747011033178,-2062.18934393,0.00019348,2]
[360777543,1747011033192,-500.0,0.00019373,2]
[360777544,1747011033206,-500.0,0.00019373,2]
[360777545,1747011033215,-500.0,0.00019373,2]
[360777546,1747011033224,-500.70711537,0.00019373,2]
[360777547,1747011033236,-500.45771567,0.00019373,2]
[360777548,1747011033249,-518.96642368,0.00019373,2]
[360777549,1747011033262,-500.0,0.00019373,2]
[360777550,1747011033276,-500.0,0.00019373,2]
[360777551,1747011033289,-500.0,0.00019373,2]
[360777552,1747011033301,-500.0,0.00019373,2]
[360777553,1747011033312,-500.0,0.00019373,2]
[360777554,1747011033323,-500.0,0.00019373,2]
[360777555,1747011033335,-500.0,0.00019373,2]
[360777556,1747011033347,-500.0,0.00019373,2]
[360777557,1747011033358,-500.0,0.00019373,2]
[360777558,1747011033370,-312.19434165,0.00019373,2]
[360777559,1747011033381,-444.6497451,0.00019373,2]
[360777560,1747011033394,-500.0,0.00019373,2]
[360777561,1747011033406,-500.0,0.00019373,2]
[360777562,1747011033417,-500.0,0.00019373,2]
[360777563,1747011033429,-5603.84690263,0.00019404,2]
[360777564,1747011033441,-152.0,0.00019407,2]
[360777565,1747011033452,-400.0,0.00019452,2]
[360777566,1747011033464,-400.0,0.00019452,2]
[360777567,1747011033476,-400.0,0.00019452,2]
[360777568,1747011033490,-400.0,0.00019452,2]
[360777569,1747011033502,-400.0,0.00019452,2]
[360777570,1747011033513,-400.0,0.00019452,2]
[360777571,1747011033524,-151.0,0.00019452,2]
[360777572,1747011033535,-151.0,0.00019452,2]
[360777573,1747011033547,-400.0,0.00019452,2]
[360777574,1747011033559,-400.0,0.00019452,2]
[360777575,1747011033572,-151.0,0.00019452,2]
[360777576,1747011033583,-1627.38,0.00019452,2]
[360777577,1747011033594,-151.0,0.00019452,2]
[360777578,1747011033605,-1126.84,0.00019452,2]
[360777579,1747011033615,-151.0,0.00019452,2]
[360777580,1747011033625,-532.1,0.00019452,2]
[360777581,1747011033637,-151.0,0.00019452,2]
[360777582,1747011033648,-235.789975,0.00019452,2]
[360777583,1747011033660,-151.0,0.00019452,2]
[360777584,1747011033671,-235.789975,0.00019452,2]
[360777585,1747011033683,-400.0,0.00019452,2]
[360777586,1747011033697,-735.19,0.00019452,2]
[360777587,1747011033709,-400.0,0.00019452,2]
[360777588,1747011033721,-467.29,0.00019452,2]
[360777589,1747011033734,-271.112068,0.00019452,2]
[360777590,1747011033747,-271.112068,0.00019452,2]
[360777591,1747011033759,-320.98,0.00019452,2]
[360777592,1747011033772,-582.29,0.00019452,2]
[360777593,1747011033785,-400.0,0.00019452,2]
[360777594,1747011033795,-400.0,0.00019452,2]
[360777595,1747011033805,-516.02,0.00019452,2]
[360777596,1747011033815,-1619.34,0.00019452,2]
[360777597,1747011033825,-961.43,0.00019452,2]
[360777598,1747011033836,-5603.84690263,0.00019536,2]
[360777599,1747011033847,-594.12123718,0.00019536,2]
[360777600,1747011033858,-5603.84690263,0.00019667,2]
[360777601,1747011033871,-186.0,0.000197,2]
[360777602,1747011033883,-400.0,0.00019726,2]
[360777603,1747011033895,-520.78,0.00019726,2]
[360777604,1747011033904,-400.0,0.00019726,2]
[360777605,1747011033914,-274.97,0.00019726,2]
[360777606,1747011033925,-206.81,0.00019726,2]
[360777607,1747011033935,-400.0,0.00019726,2]
[360777608,1747011033946,-3712.6,0.00019726,2]
[360777609,1747011033957,-3712.6,0.00019726,2]
[360777610,1747011033969,-400.0,0.00019726,2]
[360777611,1747011033979,-1627.38,0.00019726,2]
[360777612,1747011033991,-1126.84,0.00019726,2]
[360777613,1747011034001,-532.1,0.00019726,2]
[360777614,1747011034011,-252.47,0.00019726,2]
[360777615,1747011034022,-735.19,0.00019726,2]
[360777616,1747011034033,-400.0,0.00019726,2]
[360777617,1747011034043,-582.29,0.00019726,2]
[360777618,1747011034053,-400.0,0.00019726,2]
[360777619,1747011034063,-400.0,0.00019726,2]
[360777620,1747011034074,-1619.34,0.00019726,2]
[360777621,1747011034084,-961.43,0.00019726,2]
[360777622,1747011034094,-500.0,0.00019773,2]
[360777623,1747011034104,-500.0,0.00019773,2]
[360777624,1747011034116,-500.0,0.00019773,2]
[360777625,1747011034126,-500.0,0.00019773,2]
[360777626,1747011034136,-500.0,0.00019773,2]
[360777627,1747011034147,-500.0,0.00019773,2]
[360777628,1747011034157,-639.93959536,0.00019773,2]
[360777629,1747011034168,-500.0,0.00019773,2]
[360777630,1747011034179,-500.0,0.00019773,2]
[360777631,1747011034190,-500.0,0.00019773,2]
[360777632,1747011034200,-500.0,0.00019773,2]
[360777633,1747011034211,-500.0,0.00019773,2]
[360777634,1747011034222,-500.0,0.00019773,2]
[360777635,1747011034233,-500.0,0.00019773,2]
[360777636,1747011034245,-500.0,0.00019773,2]
[360777637,1747011034256,-500.0,0.00019773,2]
[360777638,1747011034267,-500.0,0.00019773,2]
[360777639,1747011034277,-500.70196316,0.00019773,2]
[360777640,1747011034288,-500.0,0.00019773,2]
[360777641,1747011034299,-500.0,0.00019773,2]
[360777642,1747011034309,-500.0,0.00019773,2]
[360777643,1747011034319,-500.0,0.00019773,2]
[360777644,1747011034330,-300.0,0.00019773,2]
[360777645,1747011034340,-500.0,0.00019773,2]
[360777646,1747011034351,-500.0,0.00019773,2]
[360777647,1747011034361,-103557.8879448,0.0001978,2]
[360777648,1747011034372,-151.0,0.0001978,2]
[360777649,1747011034383,-163.94816,0.0001978,2]
[360777650,1747011034393,-151.0,0.0001978,2]
[360777651,1747011034404,-151.0,0.0001978,2]
[360777652,1747011034414,-151.0,0.0001978,2]
[360777653,1747011034424,-151.0,0.0001978,2]
[360777654,1747011034435,-235.789975,0.0001978,2]
[360777655,1747011034445,-257.227706,0.0001978,2]
[360777656,1747011034459,-235.789975,0.0001978,2]
[360777657,1747011034470,-271.112068,0.0001978,2]
[360777658,1747011034480,-271.112068,0.0001978,2]
[360777659,1747011034490,-2062.18934393,0.00019797,2]
[360777660,1747011034500,-5603.84690263,0.00019798,2]
[360777661,1747011034511,-199595.80788401,0.0001982,2]
[360777662,1747011034528,-12155.4569476,0.0001982,2]
[360777663,1747011034544,-1233.47584287,0.0001982,2]
[360777664,1747011034562,-174.5,0.0001982,2]
[360777665,1747011034572,-174.5,0.0001982,2]
[360777666,1747011034583,-174.5,0.0001982,2]
[360777667,1747011034593,-174.5,0.0001982,2]
[360777668,1747011034604,-174.5,0.0001982,2]
[360777669,1747011034615,-174.5,0.0001982,2]
[360777670,1747011034625,-174.5,0.0001982,2]
[360777671,1747011034637,-174.5,0.0001982,2]
[360777672,1747011034647,-151.0,0.0001982,2]
[360777673,1747011034658,-151.0,0.0001982,2]
[360777674,1747011034670,-151.0,0.0001982,2]
[360777675,1747011034681,-151.0,0.0001982,2]
[360777676,1747011034697,-243.941146,0.0001982,2]
[360777677,1747011034708,-235.789975,0.0001982,2]
[360777678,1747011034718,-235.789975,0.0001982,2]
[360777679,1747011034730,-271.112068,0.0001982,2]
[360777680,1747011034741,-271.112068,0.0001982,2]
[360777681,1747011034753,-151.0,0.00019844,2]
[360777682,1747011034763,-280.900555,0.00019844,2]
[360777683,1747011034775,-151.0,0.00019844,2]
[360777684,1747011034785,-151.0,0.00019844,2]
[360777685,1747011034796,-151.0,0.00019844,2]
[360777686,1747011034807,-151.0,0.00019844,2]
[360777687,1747011034818,-151.0,0.00019844,2]
[360777688,1747011034828,-151.0,0.00019844,2]
[360777689,1747011034839,-500.0,0.00019873,2]
[360777690,1747011034850,-456.55216519,0.00019873,2]
[360777691,1747011034861,-500.0,0.00019873,2]
[360777692,1747011034870,-500.0,0.00019873,2]
[360777693,1747011035018,-500.0,0.00019873,2]
[360777694,1747011035075,-500.0,0.00019873,2]
[360777695,1747011035088,-500.0,0.00019873,2]
[360777696,1747011035098,-500.0,0.00019873,2]
[360777697,1747011035110,-500.0,0.00019873,2]
[360777698,1747011035119,-500.0,0.00019873,2]
[360777699,1747011035129,-257.30605028,0.00019873,2]
[360777700,1747011035139,-500.0,0.00019873,2]
[360777701,1747011035149,-500.0,0.00019873,2]
[360777702,1747011035159,-500.0,0.00019873,2]
[360777703,1747011035168,-500.0,0.00019873,2]
[360777704,1747011035182,-500.0,0.00019873,2]
[360777705,1747011035191,-500.0,0.00019873,2]
[360777706,1747011035200,-500.0,0.00019873,2]
[360777707,1747011035215,-151.0,0.00019873,2]
[360777708,1747011035225,-151.0,0.00019873,2]
[360777709,1747011035235,-151.0,0.00019873,2]
[360777710,1747011035244,-151.0,0.00019873,2]
[360777711,1747011035253,-151.0,0.00019873,2]
[360777712,1747011035263,-151.0,0.00019873,2]
[360777713,1747011035273,-151.0,0.00019873,2]
[360777714,1747011035282,-151.0,0.00019873,2]
[360777715,1747011035292,-235.789975,0.00019873,2]
[360777716,1747011035301,-235.789975,0.00019873,2]
[360777717,1747011035311,-151.0,0.00019873,2]
[360777718,1747011035321,-271.112068,0.00019873,2]
[360777719,1747011035331,-271.112068,0.00019873,2]
[360777720,1747011035341,-199999.015634,0.00019898,2]
[360777721,1747011035350,-151.0,0.00019898,2]
[360777722,1747011035359,-151.66165,0.00019898,2]
[360777723,1747011035369,-151.0,0.00019898,2]
[360777724,1747011035379,-151.0,0.00019898,2]
[360777725,1747011035388,-151.0,0.00019898,2]
[360777726,1747011035397,-151.0,0.00019898,2]
[360777727,1747011035407,-151.0,0.00019898,2]
[360777728,1747011035418,-151.0,0.00019898,2]
[360777729,1747011035427,-151.0,0.00019898,2]
[360777730,1747011035436,-235.789975,0.00019898,2]
[360777731,1747011035446,-235.789975,0.00019898,2]
[360777732,1747011035456,-271.112068,0.00019898,2]
[360777734,1747011035466,-271.112068,0.00019898,2]
[360777736,1747011035484,-160.0,0.00019993,2]
[360777738,1747011035498,-160.0,0.00019993,2]
[360777740,1747011035510,-160.0,0.00019993,2]
[360777742,1747011035519,-422.1676983,0.00019993,2]
[360777743,1747011035528,-160.0,0.00019993,2]
[360777745,1747011035539,-997.71092301,0.00019993,2]
[360777747,1747011035548,-160.0,0.00019993,2]
[360777749,1747011035557,-12621.47167665,0.00019997,2]
[360777751,1747011035567,-151.0,0.0002,2]
[360777753,1747011035576,-500.0,0.0002,2]
[360777755,1747011035586,-192.443613,0.0002,2]
[360777757,1747011035595,-192.443613,0.0002,2]
[360777759,1747011035604,-151.0,0.0002,2]
[360777761,1747011035613,-160.0,0.0002,3]
[360777763,1747011035623,-151.0,0.0002,2]
[360777765,1747011035632,-400.0,0.0002,2]
[360777767,1747011035641,-159.502211,0.0002,2]
[360777769,1747011035651,-400.0,0.0002,2]
[360777771,1747011035660,-400.0,0.0002,2]
[360777774,1747011035671,-1627.38,0.0002,2]
[360777776,1747011035681,-1126.84,0.0002,2]
[360777777,1747011035691,-532.1,0.0002,2]
[360777779,1747011035702,-5422.29623532,0.0002,2]
[360777781,1747011035712,-735.19,0.0002,2]
[360777784,1747011035722,-400.0,0.0002,2]
[360777786,1747011035731,-582.29,0.0002,2]
[360777788,1747011035742,-400.0,0.0002,2]
[360777789,1747011035751,-400.0,0.0002,2]
[360777791,1747011035761,-157.76,0.0002,2]
[360777793,1747011035772,-1619.34,0.0002,2]
[360777796,1747011035782,-961.43,0.0002,2]
[360777798,1747011035792,-151.0,0.00020123,2]
[360777800,1747011035801,-235.789975,0.00020123,2]
[360777802,1747011035810,-235.789975,0.00020123,2]
[360777804,1747011035819,-271.112068,0.00020123,2]
[360777806,1747011035828,-271.112068,0.00020123,2]
[360777807,1747011035837,-151.0,0.00020173,2]
[360777809,1747011035847,-151.0,0.00020173,2]
[360777811,1747011035857,-354.852504,0.00020187,2]
[360777813,1747011035866,-500.0,0.000202,2]
[360777815,1747011035875,-151.0,0.000202,2]
[360777817,1747011035884,-151.0,0.000202,2]
[360777819,1747011035894,-151.0,0.000202,2]
[360777821,1747011035903,-2062.18934393,0.00020245,2]
[360777823,1747011035914,-151.0,0.00020271,2]
[360777826,1747011035924,-151.0,0.00020271,2]
[360777827,1747011035934,-151.0,0.00020271,2]
[360777829,1747011035943,-151.0,0.00020271,2]
[360777832,1747011035954,-159.855698,0.00020271,2]
[360777834,1747011035964,-151.0,0.00020271,2]
[360777836,1747011035973,-151.0,0.00020271,2]
[360777838,1747011035984,-151.0,0.00020271,2]
[360777840,1747011035993,-151.0,0.00020271,2]
[360777842,1747011036002,-344.164919,0.00020271,2]
[360777844,1747011036011,-151.0,0.00020271,2]
[360777846,1747011036020,-344.164919,0.00020271,2]
[360777848,1747011036030,-151.0,0.00020271,2]
[360777849,1747011036039,-151.0,0.00020271,2]
[360777851,1747011036048,-151.0,0.00020271,2]
[360777853,1747011036057,-151.0,0.00020271,2]
[360777855,1747011036067,-151.0,0.00020271,2]
[360777857,1747011036076,-2092.314111,0.00020271,2]
[360777859,1747011036085,-151.0,0.00020271,2]
[360777861,1747011036094,-2092.314111,0.00020271,2]
[360777863,1747011036104,-152.533425,0.00020271,2]
[360777866,1747011036113,-152.533425,0.00020271,2]
[360777867,1747011036123,-151.0,0.00020271,2]
[360777869,1747011036133,-250.271724,0.00020271,2]
[360777871,1747011036143,-821.402153,0.00020271,2]
[360777874,1747011036152,-821.402153,0.00020271,2]
[360777876,1747011036162,-500.0,0.00020273,2]
[360777877,1747011036171,-151.0,0.00020273,2]
[360777879,1747011036181,-151.0,0.00020273,2]
[360777882,1747011036191,-151.0,0.00020273,2]
[360777883,1747011036201,-198.713294,0.00020273,2]
[360777885,1747011036211,-198.713294,0.00020273,2]
[360777887,1747011036222,-2092.314111,0.00020273,2]
[360777889,1747011036231,-151.0,0.00020273,2]
[360777891,1747011036243,-2092.314111,0.00020273,2]
[360777893,1747011036253,-410.3272,0.00020273,2]
[360777896,1747011036263,-152.533425,0.00020273,2]
[360777898,1747011036272,-152.533425,0.00020273,2]
[360777900,1747011036281,-151.0,0.00020273,2]
[360777902,1747011036290,-151.0,0.00020273,2]
[360777904,1747011036300,-400.0,0.00020273,2]
[360777906,1747011036309,-151.0,0.00020273,2]
[360777908,1747011036318,-400.0,0.00020273,2]
[360777909,1747011036327,-1627.38,0.00020273,2]
[360777911,1747011036336,-151.0,0.00020273,2]
[360777913,1747011036345,-261.845253,0.00020273,2]
[360777916,1747011036355,-1126.84,0.00020273,2]
[360777917,1747011036364,-532.1,0.00020273,2]
[360777920,1747011036373,-235.789975,0.00020273,2]
[360777922,1747011036383,-235.789975,0.00020273,2]
[360777923,1747011036392,-735.19,0.00020273,2]
[360777926,1747011036402,-400.0,0.00020273,2]
[360777928,1747011036412,-271.112068,0.00020273,2]
[360777930,1747011036421,-271.112068,0.00020273,2]
[360777932,1747011036431,-582.29,0.00020273,2]
[360777934,1747011036440,-400.0,0.00020273,2]
[360777936,1747011036449,-400.0,0.00020273,2]
[360777938,1747011036458,-1619.34,0.00020273,2]
[360777939,1747011036467,-961.43,0.00020273,2]
[360777942,1747011036476,-153.49358,0.00020547,2]
[360777943,1747011036486,-400.0,0.00020547,2]
[360777945,1747011036495,-151.0,0.00020547,2]
[360777948,1747011036505,-151.0,0.00020547,2]
[360777950,1747011036514,-400.0,0.00020547,2]
[360777951,1747011036524,-1627.38,0.00020547,2]
[360777954,1747011036534,-1126.84,0.00020547,2]
[360777955,1747011036543,-532.1,0.00020547,2]
[360777958,1747011036552,-735.19,0.00020547,2]
[360777959,1747011036561,-400.0,0.00020547,2]
[360777961,1747011036570,-582.29,0.00020547,2]
[360777963,1747011036579,-400.0,0.00020547,2]
[360777965,1747011036589,-400.0,0.00020547,2]
[360777967,1747011036599,-1619.34,0.00020547,2]
[360777970,1747011036609,-961.43,0.00020547,2]
[360777972,1747011036618,-2062.18934393,0.00020693,3]
[360777974,1747011036627,-151.0,0.00020721,2]
[360777976,1747011036636,-160.0,0.00020728,3]
[360777978,1747011036645,-151.0,0.00020728,2]
[360777980,1747011036654,-192.443613,0.00020728,2]
[360777982,1747011036663,-192.443613,0.00020728,2]
[360777984,1747011036673,-151.0,0.00020728,2]
[360777985,1747011036683,-151.0,0.00020728,2]
[360777986,1747011036693,-151.0,0.00020728,2]
[360777987,1747011036704,-151.0,0.00020728,2]
[360777988,1747011036714,-164.429793,0.00020728,2]
[360777989,1747011036729,-344.164919,0.00020728,2]
[360777990,1747011036739,-151.0,0.00020728,2]
[360777991,1747011036749,-344.164919,0.00020728,2]
[360777992,1747011036757,-151.0,0.00020728,2]
[360777993,1747011036768,-151.0,0.00020728,2]
[360777994,1747011036778,-151.0,0.00020728,2]
[360777995,1747011036788,-198.713294,0.00020728,2]
[360777996,1747011036797,-198.713294,0.00020728,2]
[360777997,1747011036807,-151.0,0.00020728,2]
[360777998,1747011036817,-153.185526,0.00020728,2]
[360777999,1747011036826,-151.0,0.00020728,2]
[360778000,1747011036835,-173.943262,0.00020728,2]
[360778001,1747011036844,-151.0,0.00020728,2]
[360778002,1747011036854,-821.402153,0.00020728,2]
[360778003,1747011036864,-821.402153,0.00020728,2]
[360778004,1747011036873,-151.0,0.00020728,2]
[360778005,1747011036882,-235.789975,0.00020728,2]
[360778006,1747011036892,-235.789975,0.00020728,2]
[360778007,1747011036901,-271.112068,0.00020728,2]
[360778008,1747011036911,-271.112068,0.00020728,2]
[360778009,1747011036921,-160.0,0.00020786,2]
[360778010,1747011036931,-2000.0,0.00020789,4]
[360778011,1747011036940,-154.318293,0.00020821,2]
[360778012,1747011036949,-151.0,0.00020821,2]
[360778013,1747011036958,-151.0,0.00020821,2]
[360778014,1747011036968,-151.0,0.00020821,2]
[360778015,1747011036977,-151.0,0.00020821,2]
[360778016,1747011036987,-151.0,0.00020821,2]
[360778017,1747011036996,-2092.314111,0.00020821,2]
[360778018,1747011037006,-2092.314111,0.00020821,2]
[360778019,1747011037015,-152.533425,0.00020821,2]
[360778020,1747011037025,-152.533425,0.00020821,2]
[360778021,1747011037034,-151.0,0.00020821,2]
[360778022,1747011037044,-400.0,0.00020821,2]
[360778023,1747011037054,-370.605349,0.00020821,2]
[360778024,1747011037065,-370.605349,0.00020821,2]
[360778025,1747011037075,-400.0,0.00020821,2]
[360778026,1747011037084,-1627.38,0.00020821,2]
[360778027,1747011037094,-1126.84,0.00020821,2]
[360778028,1747011037104,-532.1,0.00020821,2]
[360778029,1747011037114,-151.0,0.00020821,2]
[360778030,1747011037123,-151.0,0.00020821,2]
[360778031,1747011037132,-735.19,0.00020821,2]
[360778032,1747011037141,-400.0,0.00020821,2]
[360778033,1747011037151,-582.29,0.00020821,2]
[360778034,1747011037160,-400.0,0.00020821,2]
[360778035,1747011037170,-400.0,0.00020821,2]
[360778037,1747011037180,-1619.34,0.00020821,2]
[360778038,1747011037189,-961.43,0.00020821,2]
[360778039,1747011037198,-151.0,0.00020995,2]
[360778040,1747011037208,-235.789975,0.00020995,2]
[360778041,1747011037217,-235.789978,0.00020995,2]
[360778042,1747011037227,-271.112068,0.00020995,2]
[360778043,1747011037236,-271.112064,0.00020995,2]
[360778044,1747011037245,-500.0,0.00021,2]
[360778045,1747011037254,-500.0,0.00021,2]
[360778046,1747011037263,-151.0,0.00021,2]
[360778047,1747011037272,-150.0,0.0002102,62]
[360778048,1747011037281,-151.0,0.00021095,2]
[360778049,1747011037291,-198.713294,0.00021095,2]
[360778050,1747011037301,-198.713294,0.00021095,2]
[360778052,1747011037310,-400.0,0.00021095,2]
[360778053,1747011037320,-400.0,0.00021095,2]
[360778054,1747011037329,-1627.38,0.00021095,2]
[360778055,1747011037338,-151.0,0.00021095,2]
[360778056,1747011037348,-1126.84,0.00021095,2]
[360778057,1747011037358,-532.1,0.00021095,2]
[360778058,1747011037368,-735.19,0.00021095,2]
[360778059,1747011037379,-400.0,0.00021095,2]
[360778060,1747011037389,-582.29,0.00021095,2]
[360778061,1747011037399,-400.0,0.00021095,2]
[360778062,1747011037408,-400.0,0.00021095,2]
[360778063,1747011037418,-1619.34,0.00021095,2]
[360778064,1747011037428,-961.43,0.00021095,2]
[360778065,1747011037437,-2062.18934393,0.00021141,4]
[360778066,1747011037447,-151.0,0.00021173,2]
[360778067,1747011037456,-192.443613,0.00021173,2]
[360778068,1747011037466,-192.443613,0.00021173,2]
[360778069,1747011037475,-151.0,0.00021173,2]
[360778070,1747011037486,-151.0,0.00021173,2]
[360778071,1747011037495,-151.0,0.00021173,2]
[360778072,1747011037505,-151.0,0.00021298,2]
[360778073,1747011037514,-2092.314111,0.00021298,2]
[360778074,1747011037524,-2092.314111,0.00021298,2]
[360778075,1747011037533,-152.533425,0.00021298,2]
[360778076,1747011037543,-152.533425,0.00021298,2]
[360778077,1747011037552,-151.0,0.00021298,2]
[360778078,1747011037562,-151.0,0.00021369,2]
[360778079,1747011037571,-400.0,0.00021369,2]
[360778080,1747011037581,-400.0,0.00021369,2]
[360778082,1747011037591,-1627.38,0.00021369,2]
[360778083,1747011037600,-1126.84,0.00021369,2]
[360778084,1747011037610,-532.1,0.00021369,2]
[360778085,1747011037620,-735.19,0.00021369,2]
[360778086,1747011037629,-400.0,0.00021369,2]
[360778087,1747011037640,-582.29,0.00021369,2]
[360778088,1747011037649,-418.53699756,0.00021369,2]
[360778089,1747011037659,-400.0,0.00021369,2]
[360778090,1747011037668,-1619.34,0.00021369,2]
[360778091,1747011037678,-961.43,0.00021369,2]
[360778092,1747011037688,-151.0,0.000214,4]
[360778093,1747011037700,-600.0,0.00021416,2]
[360778095,1747011037709,-2062.18934393,0.0002159,5]
[360778096,1747011037719,-151.0,0.00021643,2]
[360778097,1747011037728,-151.0,0.00021643,2]
[360778098,1747011037740,-151.0,0.00021643,2]
[360778099,1747011037749,-151.0,0.00021643,2]
[360778100,1747011037759,-157.874892,0.00021643,2]
[360778101,1747011037769,-151.0,0.00021643,2]
[360778102,1747011037779,-151.0,0.00021643,2]
[360778103,1747011037788,-151.0,0.00021643,2]
[360778104,1747011037799,-344.164919,0.00021643,2]
[360778105,1747011037809,-151.0,0.00021643,2]
[360778106,1747011037820,-344.164919,0.00021643,2]
[360778107,1747011037829,-151.0,0.00021643,2]
[360778108,1747011037839,-151.0,0.00021643,2]
[360778109,1747011037849,-151.0,0.00021643,2]
[360778111,1747011037858,-198.713294,0.00021643,2]
[360778112,1747011037867,-198.713294,0.00021643,2]
[360778113,1747011037877,-400.0,0.00021643,2]
[360778114,1747011037887,-151.0,0.00021643,2]
[360778115,1747011037896,-821.402153,0.00021643,2]
[360778116,1747011037906,-821.402153,0.00021643,2]
[360778117,1747011037915,-400.0,0.00021643,2]
[360778118,1747011037925,-1627.38,0.00021643,2]
[360778119,1747011037934,-1126.84,0.00021643,2]
[360778120,1747011037944,-532.1,0.00021643,2]
[360778121,1747011037954,-735.19,0.00021643,2]
[360778122,1747011037964,-400.0,0.00021643,2]
[360778123,1747011037973,-582.29,0.00021643,2]
[360778124,1747011037983,-478.5786832,0.00021643,2]
[360778125,1747011037992,-1619.34,0.00021643,2]
[360778126,1747011038002,-961.43,0.00021643,2]
[360778127,1747011038012,-1263.34578055,0.00021698,2]
[360778128,1747011038021,-151.0,0.000217,3]
[360778129,1747011038031,-2000.0,0.000218,4]
[360778130,1747011038041,-151.0,0.000218,2]
[360778131,1747011038051,-151.0,0.00021901,2]
[360778132,1747011038061,-207.4,0.00021901,2]
[360778133,1747011038071,-325.676071,0.00021917,2]
[360778134,1747011038080,-151.0,0.00021917,2]
[360778135,1747011038090,-204.154183,0.00021917,2]
[360778136,1747011038099,-192.443613,0.00021917,2]
[360778137,1747011038109,-192.443613,0.00021917,2]
[360778141,1747011038118,-151.0,0.00021917,2]
[360778142,1747011038254,-199.092725,0.00021917,2]
[360778143,1747011038264,-199.092725,0.00021917,2]
[360778144,1747011038274,-424.491282,0.00021917,2]
[360778145,1747011038283,-424.491282,0.00021917,2]
[360778146,1747011038292,-151.0,0.00021917,2]
[360778147,1747011038301,-151.0,0.00021917,2]
[360778148,1747011038311,-368.732594,0.00021917,2]
[360778149,1747011038320,-368.732594,0.00021917,2]
[360778150,1747011038330,-849.806368,0.00021917,2]
[360778152,1747011038339,-849.806368,0.00021917,2]
[360778153,1747011038348,-151.0,0.00021917,2]
[360778154,1747011038357,-151.0,0.00021917,2]
[360778156,1747011038367,-151.0,0.00021917,2]
[360778157,1747011038379,-151.0,0.00021917,2]
[360778158,1747011038389,-151.0,0.00021917,2]
[360778159,1747011038398,-151.0,0.00021917,2]
[360778160,1747011038407,-198.713294,0.00021917,2]
[360778161,1747011038417,-198.713294,0.00021917,2]
[360778162,1747011038426,-2092.314111,0.00021917,2]
[360778163,1747011038435,-2092.314111,0.00021917,2]
[360778164,1747011038444,-151.0,0.00021917,2]
[360778165,1747011038453,-2092.314111,0.00021917,2]
[360778166,1747011038463,-2092.314111,0.00021917,2]
[360778167,1747011038472,-400.0,0.00021917,2]
[360778168,1747011038482,-400.0,0.00021917,2]
[360778169,1747011038492,-400.0,0.00021917,2]
[360778170,1747011038502,-400.0,0.00021917,2]
[360778171,1747011038512,-400.0,0.00021917,2]
[360778172,1747011038522,-400.0,0.00021917,2]
[360778173,1747011038531,-400.0,0.00021917,2]
[360778174,1747011038542,-400.0,0.00021917,2]
[360778175,1747011038551,-400.0,0.00021917,2]